lending/lending_fUSD_20260119
["ID","MTS","AMOUNT","RATE_DAILY","PERIOD"]
[402678855,1768797041266,-257.25024443,0.00016661,2]
[402678857,1768797041275,-500.0,0.00016661,2]
[402678859,1768797041284,-500.0,0.00016661,2]
[402678860,1768797041293,-500.0,0.00016661,2]
[402678862,1768797041303,-500.0,0.00016661,2]
[402678864,1768797041312,-300.0,0.00016661,2]
[402678866,1768797041322,-306063.67677129,0.00016662,2]
[402678869,1768797041334,-522.49011397,0.00016662,2]
[402678871,1768797041346,-1471.84491674,0.00016662,2]
[402678875,1768797041375,-691941.988198,0.00016662,2]
[402678877,1768797041384,-3295.60046157,0.00016663,2]
[402678879,1768797041393,-1720.5,0.00016665,2]
[402678882,1768797041406,-1000.0,0.0001676,2]
[402678884,1768797041415,-150.99,0.00016762,2]
[402678885,1768797041424,-150.99,0.00016762,2]
[402678887,1768797041433,-513.8,0.00016762,2]
[402678889,1768797041442,-3297.18,0.00016762,2]
[402678891,1768797041452,-3426.15,0.00016762,2]
[402678893,1768797041461,-9999.99,0.00016762,2]
[402678895,1768797041470,-298.70669882,0.00016763,2]
[402678897,1768797041479,-1188.53,0.00016763,2]
[402678899,1768797041488,-2375.07,0.00016763,2]
[402678901,1768797041498,-310.22,0.00016763,2]
[402678904,1768797041507,-9999.99,0.00016763,2]
[402678905,1768797041517,-4999.99,0.00016763,2]
[402678907,1768797041526,-11325.11,0.00016763,2]
[402678909,1768797041538,-749.31,0.00016763,2]
[402678911,1768797041547,-1835.03,0.00016763,2]
[402678913,1768797041557,-299.99,0.00016763,4]
[402678915,1768797041566,-452.11,0.00016763,2]
[402678918,1768797041577,-9999.99,0.00016763,2]
[402678919,1768797041586,-26210.11,0.00016763,2]
[402678922,1768797041595,-999.99,0.00016763,2]
[402678923,1768797041605,-1192.77,0.00016763,2]
[402678926,1768797041615,-6511.57371949,0.00016763,2]
[402678928,1768797041625,-1431.8871,0.00016763,2]
[402678930,1768797041634,-2500.0,0.00016763,2]
[402678932,1768797041643,-412.0,0.0001678,2]
[402678934,1768797041652,-300.0,0.000168,6]
[402678936,1768797041662,-3295.60046155,0.000168,2]
[402678938,1768797041671,-500.0,0.00016848,2]
[402678940,1768797041680,-227.843,0.00016853,2]
[402678942,1768797041689,-1087.175,0.00016853,2]
[402678944,1768797041698,-1918.0,0.00016859,2]
[402678946,1768797041707,-690.12,0.00016859,2]
[402678948,1768797041716,-155.0,0.00016861,2]
[402678950,1768797041726,-150.0,0.00016862,2]
[402678952,1768797041735,-150.0,0.00016862,2]
[402678954,1768797041744,-525.29097459,0.00016862,2]
[402678956,1768797041752,-500.0,0.00016862,2]
[402678958,1768797041762,-423.08508423,0.00016862,2]
[402678960,1768797041771,-500.0,0.00016862,2]
[402678962,1768797041780,-301.40535093,0.00016862,2]
[402678964,1768797041789,-289.14683953,0.00016862,2]
[402678966,1768797041798,-500.0,0.00016862,2]
[402678967,1768797041807,-500.0,0.00016862,2]
[402678970,1768797041817,-500.0,0.00016862,2]
[402678971,1768797041826,-499.99999983,0.00016862,2]
[402678973,1768797041836,-500.0,0.00016862,2]
[402678976,1768797041845,-160.31433437,0.00016862,2]
[402678977,1768797041855,-500.0,0.00016862,2]
[402678979,1768797041864,-500.0,0.00016862,2]
[402678981,1768797041873,-432.68173668,0.00016862,2]
[402678983,1768797041882,-509.1441621,0.00016862,2]
[402678985,1768797041891,-603.26732736,0.00016862,2]
[402678987,1768797041901,-500.0,0.00016862,2]
[402678990,1768797041910,-500.0,0.00016862,2]
[402678992,1768797041919,-500.0,0.00016862,2]
[402678994,1768797041929,-500.0,0.00016862,2]
[402678995,1768797041939,-500.0,0.00016862,2]
[402678998,1768797041949,-500.0,0.00016862,2]
[402679000,1768797041958,-500.0,0.00016862,2]
[402679002,1768797041968,-1000.0,0.00016862,2]
[402679004,1768797041978,-1000.0,0.00016862,2]
[402679005,1768797041987,-1000.0,0.00016862,2]
[402679007,1768797041996,-1000.0,0.00016862,2]
[402679010,1768797042005,-1000.0,0.00016862,2]
[402679012,1768797042015,-1000.0,0.00016862,2]
[402679013,1768797042024,-1000.0,0.00016862,2]
[402679016,1768797042033,-1000.0,0.00016862,2]
[402679018,1768797042042,-1000.0,0.00016862,2]
[402679019,1768797042052,-1000.0,0.00016862,2]
[402679022,1768797042062,-1000.0,0.00016862,2]
[402679023,1768797042071,-1000.0,0.00016862,2]
[402679025,1768797042080,-300.58340851,0.00016862,2]
[402679027,1768797042089,-40759.61637077,0.00016862,2]
[402679030,1768797042103,-167.85424787,0.00016862,2]
[402679032,1768797042123,-1000.0,0.00016863,2]
[402679034,1768797042143,-417.0916,0.00016863,2]
[402679036,1768797042164,-6511.57371948,0.00016889,2]
[402679038,1768797042176,-600.0,0.000169,6]
[402679039,1768797042186,-513.97071357,0.00016905,2]
[402679042,1768797042196,-906.70526164,0.00016905,2]
[402679043,1768797042205,-1356.37684493,0.00016905,2]
[402679045,1768797042214,-1835.2224,0.00016905,2]
[402679047,1768797042224,-20776.26956272,0.00016919,2]
[402679049,1768797042233,-500.0,0.00016935,2]
[402679051,1768797042242,-3295.60046155,0.00016938,2]
[402679053,1768797042253,-298.70669878,0.00016953,2]
[402679055,1768797042272,-159.26,0.0001697,2]
[402679057,1768797042292,-250.0,0.00016986,4]
[402679059,1768797042301,-250.0,0.00017,2]
[402679061,1768797042311,-6511.57371948,0.00017016,2]
[402679063,1768797042321,-234.27,0.0001705,2]
[402679065,1768797042331,-3295.60046155,0.00017075,2]
[402679067,1768797042341,-1918.0,0.00017089,2]
[402679069,1768797042351,-174.61919141,0.00017099,2]
[402679071,1768797042362,-1999.0,0.00017099,2]
[402679073,1768797042371,-574.12855637,0.00017099,2]
[402679075,1768797042382,-322.6107,0.00017099,2]
[402679077,1768797042392,-578.20924308,0.00017099,2]
[402679079,1768797042401,-1918.0,0.00017113,2]
[402679081,1768797042410,-266.4,0.00017123,4]
[402679083,1768797042419,-690.12,0.00017133,2]
[402679085,1768797042428,-298.70669878,0.00017142,2]
[402679087,1768797042437,-6511.57371948,0.00017142,2]
[402679089,1768797042446,-168.0,0.00017179,2]
[402679091,1768797042455,-3661.0,0.00017179,2]
[402679093,1768797042464,-209.98696259,0.00017209,2]
[402679095,1768797042473,-3295.60046155,0.00017213,2]
[402679097,1768797042482,-500.0,0.00017227,2]
[402679099,1768797042492,-500.0,0.00017233,2]
[402679101,1768797042501,-1000.0,0.00017233,2]
[402679103,1768797042510,-1000.0,0.00017233,2]
[402679105,1768797042519,-1000.0,0.00017233,2]
[402679107,1768797042529,-1000.0,0.00017233,2]
[402679109,1768797042541,-1000.0,0.00017233,2]
[402679111,1768797042551,-1000.0,0.00017233,2]
[402679113,1768797042560,-1000.0,0.00017233,2]
[402679115,1768797042569,-1000.0,0.00017233,2]
[402679117,1768797042578,-1000.0,0.00017233,2]
[402679119,1768797042588,-1000.0,0.00017233,2]
[402679121,1768797042597,-1000.0,0.00017233,2]
[402679123,1768797042606,-1000.0,0.00017233,2]
[402679125,1768797042617,-1000.0,0.00017233,2]
[402679127,1768797042626,-1000.0,0.00017233,2]
[402679129,1768797042637,-500.0,0.00017233,2]
[402679131,1768797042647,-500.0,0.00017235,2]
[402679133,1768797042656,-500.0,0.00017235,2]
[402679135,1768797042665,-369.91760368,0.00017235,2]
[402679137,1768797042674,-500.0,0.00017235,2]
[402679139,1768797042683,-500.0,0.00017235,2]
[402679141,1768797042692,-500.0,0.00017235,2]
[402679143,1768797042701,-500.0,0.00017235,2]
[402679145,1768797042710,-500.0,0.00017235,2]
[402679147,1768797042719,-500.0,0.00017235,2]
[402679149,1768797042728,-500.0,0.00017235,2]
[402679151,1768797042738,-500.0,0.00017235,2]
[402679153,1768797042747,-500.0,0.00017235,2]
[402679155,1768797042756,-500.0,0.00017235,2]
[402679157,1768797042765,-500.0,0.00017235,2]
[402679159,1768797042775,-500.0,0.00017235,2]
[402679160,1768797042784,-500.0,0.00017235,2]
[402679161,1768797042793,-1000.0,0.0001726,2]
[402679162,1768797042801,-168.0,0.00017261,2]
[402679163,1768797042810,-6511.57371948,0.00017268,2]
[402679165,1768797042819,-1000.0,0.000173,6]
[402679167,1768797042829,-298.70669878,0.00017332,2]
[402679170,1768797042838,-3295.60046155,0.0001735,2]
[402679172,1768797042847,-168.0,0.00017374,2]
[402679174,1768797042855,-549.0,0.00017377,2]
[402679176,1768797042864,-6511.57371948,0.00017395,2]
[402679178,1768797042873,-1300.0,0.000174,6]
[402679179,1768797042882,-690.12,0.00017407,2]
[402679180,1768797042891,-250.0,0.00017422,2]
[402679181,1768797042900,-1163.0,0.00017431,2]
[402679182,1768797042909,-1720.5,0.00017458,2]
[402679184,1768797042918,-3295.60046155,0.00017488,2]
[402679185,1768797042926,-1700.0,0.000175,6]
[402679186,1768797042936,-298.70669878,0.00017521,2]
[402679188,1768797042945,-6511.57371948,0.00017521,2]
[402679190,1768797042954,-1000.0,0.00017534,2]
[402679192,1768797042963,-541.0,0.00017592,2]
[402679194,1768797042973,-300.0,0.000176,6]
[402679196,1768797042982,-3295.60046155,0.00017625,2]
[402679198,1768797042991,-541.0,0.00017629,2]
[402679200,1768797043000,-595.37131296,0.00017647,2]
[402679202,1768797043009,-6511.57371948,0.00017647,2]
[402679204,1768797043018,-541.0,0.00017666,2]
[402679206,1768797043027,-4319.62586682,0.00017671,2]
[402679208,1768797043037,-982.0402849,0.00017671,2]
[402679210,1768797043047,-2045.65935531,0.00017671,2]
[402679212,1768797043057,-162.0,0.0001768,2]
[402679214,1768797043066,-690.12,0.00017681,2]
[402679216,1768797043075,-150.0,0.00017699,2]
[402679218,1768797043084,-150.0,0.00017699,2]
[402679220,1768797043093,-500.0,0.00017699,2]
[402679222,1768797043102,-500.0,0.00017699,2]
[402679224,1768797043112,-612.0,0.00017699,2]
[402679226,1768797043121,-150.0,0.00017699,2]
[402679228,1768797043130,-500.0,0.00017699,2]
[402679230,1768797043140,-150.0,0.00017699,2]
[402679232,1768797043149,-500.0,0.00017699,2]
[402679234,1768797043159,-150.0,0.00017699,2]
[402679236,1768797043167,-150.0,0.00017699,2]
[402679238,1768797043176,-213.50419606,0.00017699,2]
[402679240,1768797043186,-500.0,0.00017699,2]
[402679242,1768797043195,-500.0,0.00017699,2]
[402679244,1768797043204,-500.0,0.00017699,2]
[402679246,1768797043213,-500.0,0.00017699,2]
[402679248,1768797043222,-500.0,0.00017699,2]
[402679250,1768797043231,-500.0,0.00017699,2]
[402679252,1768797043240,-150.0,0.00017699,2]
[402679254,1768797043250,-500.0,0.00017699,2]
[402679256,1768797043260,-500.0,0.00017699,2]
[402679258,1768797043270,-500.0,0.00017699,2]
[402679260,1768797043279,-500.0,0.00017699,2]
[402679262,1768797043289,-500.0,0.00017699,2]
[402679264,1768797043298,-500.0,0.00017699,2]
[402679266,1768797043308,-150.0,0.00017699,2]
[402679268,1768797043318,-150.0,0.00017699,2]
[402679270,1768797043327,-150.0,0.00017699,2]
[402679272,1768797043338,-500.0,0.00017699,2]
[402679274,1768797043347,-500.0,0.00017699,2]
[402679276,1768797043357,-500.0,0.00017699,2]
[402679278,1768797043366,-150.0,0.00017699,2]
[402679280,1768797043375,-500.0,0.00017699,2]
[402679282,1768797043384,-249.07582255,0.00017699,2]
[402679284,1768797043394,-150.0,0.00017699,2]
[402679286,1768797043403,-300.0,0.000177,6]
[402679288,1768797043412,-541.0,0.00017703,2]
[402679290,1768797043421,-298.70669878,0.00017711,2]
[402679292,1768797043431,-1500.0,0.00017726,7]
[402679294,1768797043440,-500.0,0.00017727,2]
[402679296,1768797043451,-500.0,0.00017727,2]
[402679298,1768797043460,-541.0,0.0001774,2]
[402679300,1768797043469,-1000.0,0.00017749,2]
[402679302,1768797043479,-150.0,0.00017754,2]
[402679304,1768797043488,-150.0,0.00017754,2]
[402679306,1768797043497,-500.0,0.00017754,2]
[402679308,1768797043506,-500.0,0.00017754,2]
[402679310,1768797043516,-612.0,0.00017754,2]
[402679312,1768797043526,-150.0,0.00017754,2]
[402679314,1768797043537,-500.0,0.00017754,2]
[402679316,1768797043546,-234.84703135,0.00017754,2]
[402679318,1768797043555,-150.0,0.00017754,2]
[402679320,1768797043565,-500.0,0.00017754,2]
[402679322,1768797043575,-150.0,0.00017754,2]
[402679324,1768797043584,-500.0,0.00017754,2]
[402679325,1768797043593,-500.0,0.00017754,2]
[402679328,1768797043604,-500.0,0.00017754,2]
[402679330,1768797043614,-500.0,0.00017754,2]
[402679332,1768797043623,-500.0,0.00017754,2]
[402679334,1768797043633,-500.0,0.00017754,2]
[402679336,1768797043642,-510.20107103,0.00017754,2]
[402679338,1768797043652,-500.0,0.00017754,2]
[402679340,1768797043661,-500.0,0.00017754,2]
[402679342,1768797043670,-500.0,0.00017754,2]
[402679344,1768797043679,-500.0,0.00017754,2]
[402679346,1768797043688,-500.0,0.00017754,2]
[402679348,1768797043697,-150.0,0.00017754,2]
[402679350,1768797043706,-500.0,0.00017754,2]
[402679352,1768797043715,-500.0,0.00017754,2]
[402679354,1768797043725,-500.0,0.00017754,2]
[402679356,1768797043734,-500.0,0.00017754,2]
[402679358,1768797043743,-150.0,0.00017754,2]
[402679360,1768797043753,-3295.60046155,0.00017763,2]
[402679362,1768797043761,-6511.57371948,0.00017774,2]
[402679364,1768797043771,-541.0,0.00017777,2]
[402679366,1768797043780,-1332.0,0.00017784,2]
[402679368,1768797043789,-428.46849167,0.00017799,2]
[402679370,1768797043798,-2000.0,0.000178,2]
[402679372,1768797043807,-300.0,0.000178,6]
[402679374,1768797043815,-1000.0,0.00017808,2]
[402679376,1768797043824,-150.0,0.00017809,2]
[402679378,1768797043833,-150.0,0.00017809,2]
[402679380,1768797043843,-278.0,0.00017809,2]
[402679382,1768797043852,-375.80053399,0.00017809,2]
[402679384,1768797043861,-612.0,0.00017809,2]
[402679386,1768797043870,-150.0,0.00017809,2]
[402679388,1768797043879,-500.0,0.00017809,2]
[402679390,1768797043888,-150.0,0.00017809,2]
[402679392,1768797043898,-500.0,0.00017809,2]
[402679394,1768797043907,-150.0,0.00017809,2]
[402679395,1768797043916,-500.0,0.00017809,2]
[402679397,1768797043926,-500.0,0.00017809,2]
[402679400,1768797043936,-537.54584624,0.00017809,2]
[402679402,1768797043948,-500.0,0.00017809,2]
[402679404,1768797043959,-328.08835747,0.00017809,2]
[402679405,1768797043969,-500.0,0.00017809,2]
[402679407,1768797043979,-500.0,0.00017809,2]
[402679409,1768797043988,-500.0,0.00017809,2]
[402679412,1768797043997,-500.0,0.00017809,2]
[402679413,1768797044006,-500.0,0.00017809,2]
[402679416,1768797044016,-500.0,0.00017809,2]
[402679417,1768797044025,-500.0,0.00017809,2]
[402679420,1768797044035,-500.0,0.00017809,2]
[402679421,1768797044044,-500.0,0.00017809,2]
[402679424,1768797044055,-500.0,0.00017809,2]
[402679426,1768797044064,-150.0,0.00017809,2]
[402679427,1768797044073,-541.0,0.00017815,2]
[402679430,1768797044083,-541.0,0.00017852,2]
[402679432,1768797044092,-150.0,0.00017863,2]
[402679433,1768797044101,-150.0,0.00017863,2]
[402679436,1768797044111,-612.0,0.00017863,2]
[402679438,1768797044120,-150.0,0.00017863,2]
[402679439,1768797044129,-500.0,0.00017863,2]
[402679442,1768797044139,-150.0,0.00017863,2]
[402679443,1768797044148,-215.7773908,0.00017863,2]
[402679445,1768797044157,-150.0,0.00017863,2]
[402679447,1768797044167,-500.0,0.00017863,2]
[402679450,1768797044177,-154.23631951,0.00017863,2]
[402679451,1768797044187,-500.0,0.00017863,2]
[402679454,1768797044197,-500.0,0.00017863,2]
[402679456,1768797044207,-585.36842151,0.00017863,2]
[402679458,1768797044216,-500.0,0.00017863,2]
[402679460,1768797044225,-500.0,0.00017863,2]
[402679462,1768797044234,-500.0,0.00017863,2]
[402679464,1768797044244,-500.0,0.00017863,2]
[402679466,1768797044253,-500.0,0.00017863,2]
[402679468,1768797044262,-500.0,0.00017863,2]
[402679470,1768797044271,-500.0,0.00017863,2]
[402679472,1768797044280,-500.0,0.00017863,2]
[402679474,1768797044290,-150.0,0.00017863,2]
[402679476,1768797044299,-151.60783167,0.00017884,2]
[402679478,1768797044309,-541.0,0.00017889,2]
[402679480,1768797044319,-1000.0,0.00017895,2]
[402679481,1768797044329,-1163.0,0.00017896,2]
[402679483,1768797044339,-298.70669878,0.000179,2]
[402679486,1768797044348,-300.0,0.000179,6]
[402679489,1768797044370,-546.8830839,0.000179,2]
[402679491,1768797044381,-3295.60046155,0.000179,2]
[402679493,1768797044390,-6511.57371948,0.000179,2]
[402679495,1768797044399,-156.77393671,0.000179,2]
[402679497,1768797044408,-156.77393671,0.000179,2]
[402679499,1768797044419,-156.77393671,0.000179,2]
[402679501,1768797044429,-156.77393671,0.000179,2]
[402679503,1768797044439,-156.77393671,0.000179,2]
[402679505,1768797044448,-156.77393671,0.000179,2]
[402679507,1768797044459,-156.77393671,0.000179,2]
[402679509,1768797044468,-500.0,0.000179,2]
[402679511,1768797044478,-500.0,0.000179,2]
[402679513,1768797044488,-500.0,0.000179,2]
[402679515,1768797044498,-500.0,0.000179,2]
[402679517,1768797044509,-500.0,0.000179,2]
[402679519,1768797044518,-500.0,0.000179,2]
[402679521,1768797044527,-500.0,0.000179,2]
[402679523,1768797044542,-500.0,0.000179,2]
[402679525,1768797044551,-500.0,0.000179,2]
[402679527,1768797044561,-500.0,0.000179,2]
[402679529,1768797044572,-500.0,0.000179,2]
[402679531,1768797044583,-500.0,0.000179,2]
[402679533,1768797044592,-500.0,0.000179,2]
[402679535,1768797044603,-500.0,0.000179,2]
[402679537,1768797044612,-500.0,0.000179,2]
[402679539,1768797044621,-500.0,0.000179,2]
[402679541,1768797044631,-500.0,0.000179,2]
[402679543,1768797044638,-500.0,0.000179,2]
[402679545,1768797044646,-500.0,0.000179,2]
[402679547,1768797044654,-500.0,0.000179,2]
[402679549,1768797044663,-500.0,0.000179,2]
[402679551,1768797044672,-500.0,0.000179,2]
[402679553,1768797044680,-500.0,0.000179,2]
[402679555,1768797044689,-500.0,0.000179,2]
[402679557,1768797044699,-500.0,0.000179,2]
[402679559,1768797044708,-500.0,0.000179,2]
[402679562,1768797044725,-500.0,0.000179,2]
[402679564,1768797044734,-500.0,0.000179,2]
[402679566,1768797044744,-500.0,0.000179,2]
[402679568,1768797044754,-500.0,0.000179,2]
[402679570,1768797044764,-150.0,0.00017918,2]
[402679572,1768797044776,-262.58907079,0.00017918,2]
[402679574,1768797044787,-612.0,0.00017918,2]
[402679576,1768797044797,-150.0,0.00017918,2]
[402679579,1768797044807,-150.0,0.00017918,2]
[402679581,1768797044817,-150.0,0.00017918,2]
[402679583,1768797044827,-500.0,0.00017918,2]
[402679585,1768797044838,-156.14638917,0.00017918,2]
[402679621,1768797045175,-500.0,0.00017918,2]
[402679623,1768797045186,-500.0,0.00017918,2]
[402679626,1768797045196,-500.0,0.00017918,2]
[402679628,1768797045206,-500.0,0.00017918,2]
[402679629,1768797045215,-500.0,0.00017918,2]
[402679632,1768797045225,-250.0,0.00017918,2]
[402679634,1768797045235,-500.0,0.00017918,2]
[402679636,1768797045244,-500.0,0.00017918,2]
[402679638,1768797045254,-150.0,0.00017918,2]
[402679640,1768797045263,-541.0,0.00017926,2]
[402679642,1768797045272,-3076.9161736,0.00017941,2]
[402679644,1768797045284,-690.12,0.00017955,2]
[402679646,1768797045293,-492.594,0.00017961,2]
[402679648,1768797045303,-539.302,0.00017961,2]
[402679650,1768797045312,-541.0,0.00017963,2]
[402679652,1768797045321,-328.96,0.00017966,2]
[402679654,1768797045331,-150.0,0.00017973,2]
[402679656,1768797045341,-500.0,0.00017973,2]
[402679658,1768797045350,-250.0,0.00017973,2]
[402679661,1768797045365,-612.0,0.00017973,2]
[402679663,1768797045375,-200.94075382,0.00017973,2]
[402679665,1768797045385,-250.0,0.00017973,2]
[402679667,1768797045394,-250.0,0.00017973,2]
[402679669,1768797045404,-500.0,0.00017973,2]
[402679671,1768797045414,-500.0,0.00017973,2]
[402679673,1768797045424,-500.0,0.00017973,2]
[402679675,1768797045434,-179.25175173,0.00017973,2]
[402679677,1768797045444,-500.0,0.00017973,2]
[402679679,1768797045454,-510.2774242,0.00017973,2]
[402679681,1768797045464,-500.0,0.00017973,2]
[402679683,1768797045474,-500.0,0.00017973,2]
[402679685,1768797045484,-250.0,0.00017973,2]
[402679687,1768797045494,-20502.7034814,0.00017989,2]
[402679689,1768797045503,-1348.6072981,0.00017989,2]
[402679691,1768797045512,-1310.06011249,0.00017992,2]
[402679694,1768797045523,-300.0,0.00017992,2]
[402679695,1768797045533,-197.6493566,0.00017992,2]
[402679698,1768797045547,-216.56488938,0.00017999,2]
[402679700,1768797045557,-500.74196097,0.00017999,2]
[402679702,1768797045567,-500.0,0.00017999,2]
[402679704,1768797045576,-500.0,0.00017999,2]
[402679706,1768797045586,-500.0,0.00017999,2]
[402679708,1768797045596,-500.0,0.00017999,2]
[402679710,1768797045606,-500.0,0.00017999,2]
[402679712,1768797045616,-500.0,0.00017999,2]
[402679714,1768797045626,-393.19983365,0.00017999,2]
[402679716,1768797045636,-636530.86169774,0.00018,2]
[402679813,1768797046323,-19090.17787788,0.00018,2]
[402679815,1768797046335,-20371.42581627,0.00018,2]
[402679861,1768797046766,-151.0,0.00016787,2]
[402679863,1768797046775,-151.0,0.00016787,2]
[402679865,1768797046784,-233.32911269,0.00018,2]
[402679904,1768797047143,-151.0,0.00016787,2]
[402679906,1768797047153,-130.016,0.00018,2]
[402679908,1768797047164,-817.13700213,0.00018,2]
[402680368,1768797304713,100000.0,0.0002739,120]
[402680369,1768797464068,500.0,0.00015668,2]
[402680370,1768797526252,1590.23,0.00015695,2]
[402680371,1768797563933,7509.78,0.00012913,2]
[402680372,1768797563957,1845.8,0.00012913,2]
[402680373,1768798013849,500.0,0.00015614,2]
[402680374,1768798150126,-166.67,0.00016139,2]
[402680375,1768798150153,-250.0,0.00016142,2]
[402680376,1768798150179,-195.0,0.00016145,2]
[402680377,1768798150202,-445.10708926,0.00016151,2]
[402680378,1768798150224,-250.0,0.0001617,2]
[402680379,1768798165271,300.0,0.00027397,120]
[402680390,1768798232002,-1400.0,0.00016356,2]
[402680393,1768798232012,-330.82977104,0.00016366,2]
[402680394,1768798232026,-3453.0119789,0.00016375,2]
[402680395,1768798232036,-1200.0,0.00016398,2]
[402680396,1768798232047,-500.0,0.00016399,2]
[402680397,1768798232057,-398.62810052,0.00016399,2]
[402680398,1768798232069,-101.37189948,0.00016399,2]
[402680399,1768798232079,-180.66426965,0.00016399,2]
[402680400,1768798232090,-343.9206015,0.00016399,2]
[402680401,1768798232099,-321.22469908,0.00016399,2]
[402680402,1768798232109,-500.0,0.00016399,2]
[402680403,1768798232119,-500.0,0.00016399,2]
[402680404,1768798232128,-500.0,0.00016399,2]
[402680405,1768798232138,-190.0751711,0.00016399,2]
[402680406,1768798232147,-152.90461503,0.00016399,2]
[402680407,1768798232154,-171.73004629,0.00016399,2]
[402680408,1768798232163,-500.0,0.00016399,2]
[402680409,1768798232172,-500.0,0.00016399,2]
[402680410,1768798232182,-500.0,0.00016399,2]
[402680411,1768798232192,-500.0,0.00016399,2]
[402680412,1768798232203,-500.0,0.00016399,2]
[402680413,1768798232212,-500.0,0.00016399,2]
[402680414,1768798232222,-500.0,0.00016399,2]
[402680415,1768798232233,-500.0,0.00016399,2]
[402680416,1768798232243,-500.0,0.00016399,2]
[402680417,1768798232253,-500.0,0.00016399,2]
[402680418,1768798232263,-500.0,0.00016399,2]
[402680419,1768798232277,-500.0,0.00016399,2]
[402680420,1768798232287,-500.0,0.00016399,2]
[402680421,1768798232297,-500.0,0.00016399,2]
[402680422,1768798232307,-500.0,0.00016399,2]
[402680423,1768798232316,-500.0,0.00016399,2]
[402680424,1768798232327,-500.0,0.00016399,2]
[402680425,1768798232336,-500.0,0.00016399,2]
[402680427,1768798232346,-500.0,0.00016399,2]
[402680429,1768798232356,-500.0,0.00016399,2]
[402680431,1768798232366,-500.0,0.00016399,2]
[402680432,1768798232376,-500.0,0.00016399,2]
[402680433,1768798232386,-500.0,0.00016399,2]
[402680434,1768798232397,-500.0,0.00016399,2]
[402680437,1768798232406,-500.0,0.00016399,2]
[402680439,1768798232416,-500.0,0.00016399,2]
[402680441,1768798232426,-500.0,0.00016399,2]
[402680443,1768798232435,-500.0,0.00016399,2]
[402680445,1768798232445,-500.0,0.00016399,2]
[402680447,1768798232455,-517.46374474,0.00016399,2]
[402680449,1768798232465,-500.0,0.00016399,2]
[402680451,1768798232475,-606.11991477,0.00016399,2]
[402680453,1768798232485,-606.11991477,0.00016399,2]
[402680455,1768798232495,-606.11991477,0.00016399,2]
[402680457,1768798232505,-606.11991477,0.00016399,2]
[402680459,1768798232515,-606.11991477,0.00016399,2]
[402680461,1768798232524,-606.11991477,0.00016399,2]
[402680463,1768798232534,-606.11991477,0.00016399,2]
[402680465,1768798232543,-606.11991477,0.00016399,2]
[402680467,1768798232553,-606.11991477,0.00016399,2]
[402680469,1768798232562,-606.11991477,0.00016399,2]
[402680471,1768798232571,-606.11991477,0.00016399,2]
[402680473,1768798232581,-606.11991477,0.00016399,2]
[402680475,1768798232590,-606.11991477,0.00016399,2]
[402680477,1768798232600,-606.11991477,0.00016399,2]
[402680479,1768798232609,-606.11991477,0.00016399,2]
[402680481,1768798232618,-606.11991477,0.00016399,2]
[402680484,1768798232632,-606.11991477,0.00016399,2]
[402680486,1768798232642,-606.11991477,0.00016399,2]